Workbook

Sheet 最终版
A1: 三穗县人民医院2018年公开招聘80备案制人员体检合格名单
A2: 序号 | B2: 姓名 | C2: 报考岗位代码 | D2: 报考岗位 | E2: 笔试得分 | F2: 面试得分 | G2: 总分 | H2: 平均分 | I2: 加分得分 | M2: 综合成绩 | N2: 体检结果 | O2: 备注
I3: 专科护士 | J3: 职称 | K3: 获奖 | L3: 合计
A4: 1 | B4: 吴宗平 | C4: 01 | D4: 专业技术岗 | E4: 92 | F4: 90.16 | G4: =SUM(E4:F4) -> 182.16 | H4: =G4/2 -> 91.08 | I4: 3.00 | L4: =SUM(I4:K4) -> 3.00 | M4: =H4+L4 -> 94.08 | N4: 合格
A5: 2 | B5: 向清英 | C5: 01 | D5: 专业技术岗 | E5: 80 | F5: 88.66 | G5: =SUM(E5:F5) -> 168.66 | H5: =G5/2 -> 84.33 | K5: 8.00 | L5: =SUM(I5:K5) -> 8.00 | M5: =H5+L5 -> 92.33 | N5: 合格
A6: 3 | B6: 蒋宏梅 | C6: 01 | D6: 专业技术岗 | E6: 93 | F6: 87 | G6: =SUM(E6:F6) -> 180 | H6: =G6/2 -> 90.00 | K6: 2.00 | L6: =SUM(I6:K6) -> 2.00 | M6: =H6+L6 -> 92.00 | N6: 合格
A7: 4 | B7: 万馨平 | C7: 01 | D7: 专业技术岗 | E7: 76 | F7: 91.5 | G7: =SUM(E7:F7) -> 167.5 | H7: =G7/2 -> 83.75 | K7: 6.00 | L7: =SUM(I7:K7) -> 6.00 | M7: =H7+L7 -> 89.75 | N7: 合格
A8: 5 | B8: 彭开丽 | C8: 01 | D8: 专业技术岗 | E8: 89 | F8: 84.16 | G8: =SUM(E8:F8) -> 173.16 | H8: =G8/2 -> 86.58 | I8: 3.00 | L8: 3.00 | M8: =H8+L8 -> 89.58 | N8: 合格
A9: 6 | B9: 盛光慧 | C9: 01 | D9: 专业技术岗 | E9: 84 | F9: 87.66 | G9: =SUM(E9:F9) -> 171.66 | H9: =G9/2 -> 85.83 | I9: 3.00 | L9: 3.00 | M9: =H9+L9 -> 88.83 | N9: 合格
A10: 7 | B10: 徐雪 | C10: 01 | D10: 专业技术岗 | E10: 82 | F10: 87.66 | G10: =SUM(E10:F10) -> 169.66 | H10: =G10/2 -> 84.83 | I10: 3.00 | L10: 3.00 | M10: =H10+L10 -> 87.83 | N10: 合格
A11: 8 | B11: 张锡连 | C11: 01 | D11: 专业技术岗 | E11: 88 | F11: 81.16 | G11: =SUM(E11:F11) -> 169.16 | H11: =G11/2 -> 84.58 | I11: 3.00 | L11: 3.00 | M11: =H11+L11 -> 87.58 | N11: 合格
A12: 9 | B12: 符萍萍 | C12: 01 | D12: 专业技术岗 | E12: 80 | F12: 88.5 | G12: =SUM(E12:F12) -> 168.5 | H12: =G12/2 -> 84.25 | I12: 3.00 | L12: 3.00 | M12: =H12+L12 -> 87.25 | N12: 合格
A13: 10 | B13: 龙曾云 | C13: 01 | D13: 专业技术岗 | E13: 88 | F13: 85.83 | G13: =SUM(E13:F13) -> 173.83 | H13: =G13/2 -> 86.92 | M13: =H13+L13 -> 86.92 | N13: 合格
A14: 11 | B14: 杨燕 | C14: 01 | D14: 专业技术岗 | E14: 87 | F14: 86.66 | G14: =SUM(E14:F14) -> 173.66 | H14: =G14/2 -> 86.83 | M14: =H14+L14 -> 86.83 | N14: 合格
A15: 12 | B15: 吴配娥 | C15: 01 | D15: 专业技术岗 | E15: 83 | F15: 84.66 | G15: =SUM(E15:F15) -> 167.66 | H15: =G15/2 -> 83.83 | I15: 3.00 | L15: =SUM(I15:K15) -> 3.00 | M15: =H15+L15 -> 86.83 | N15: 合格
A16: 13 | B16: 王艳 | C16: 01 | D16: 专业技术岗 | E16: 83 | F16: 83.5 | G16: =SUM(E16:F16) -> 166.5 | H16: =G16/2 -> 83.25 | I16: 3.00 | L16: 3.00 | M16: =H16+L16 -> 86.25 | N16: 合格
A17: 14 | B17: 龙文平 | C17: 01 | D17: 专业技术岗 | E17: 83 | F17: 86.83 | G17: =SUM(E17:F17) -> 169.83 | H17: =G17/2 -> 84.92 | J17: 1.00 | L17: 1.00 | M17: =H17+L17 -> 85.92 | N17: 合格
A18: 15 | B18: 杨通群 | C18: 01 | D18: 专业技术岗 | E18: 79 | F18: 88.83 | G18: =SUM(E18:F18) -> 167.83 | H18: =G18/2 -> 83.92 | K18: 2.00 | L18: 2.00 | M18: =H18+L18 -> 85.92 | N18: 合格
A19: 16 | B19: 邓雪梅 | C19: 01 | D19: 专业技术岗 | E19: 83 | F19: 88.66 | G19: =SUM(E19:F19) -> 171.66 | H19: =G19/2 -> 85.83 | M19: =H19+L19 -> 85.83 | N19: 合格
A20: 17 | B20: 杨红 | C20: 01 | D20: 专业技术岗 | E20: 80 | F20: 85 | G20: =SUM(E20:F20) -> 165 | H20: =G20/2 -> 82.50 | I20: 3.00 | L20: =SUM(I20:K20) -> 3.00 | M20: =H20+L20 -> 85.50 | N20: 合格
A21: 18 | B21: 陈芳 | C21: 01 | D21: 专业技术岗 | E21: 81 | F21: 89.83 | G21: =SUM(E21:F21) -> 170.83 | H21: =G21/2 -> 85.42 | M21: =H21+L21 -> 85.42 | N21: 合格
A22: 19 | B22: 杨海洋 | C22: 01 | D22: 专业技术岗 | E22: 81 | F22: 87.5 | G22: =SUM(E22:F22) -> 168.5 | H22: =G22/2 -> 84.25 | M22: =H22+L22 -> 84.25 | N22: 合格
A23: 20 | B23: 郭勤文 | C23: 01 | D23: 专业技术岗 | E23: 82 | F23: 86 | G23: =SUM(E23:F23) -> 168 | H23: =G23/2 -> 84.00 | M23: =H23+L23 -> 84.00 | N23: 合格
A24: 21 | B24: 张峻华 | C24: 01 | D24: 专业技术岗 | E24: 78 | F24: 88.33 | G24: =SUM(E24:F24) -> 166.33 | H24: =G24/2 -> 83.17 | M24: =H24+L24 -> 83.17 | N24: 合格
A25: 22 | B25: 周杨维 | C25: 01 | D25: 专业技术岗 | E25: 88 | F25: 78 | G25: =SUM(E25:F25) -> 166 | H25: =G25/2 -> 83.00 | M25: =H25+L25 -> 83.00 | N25: 合格
A26: 23 | B26: 杨天碧 | C26: 01 | D26: 专业技术岗 | E26: 84 | F26: 80.33 | G26: =SUM(E26:F26) -> 164.33 | H26: =G26/2 -> 82.17 | M26: =H26+L26 -> 82.17 | N26: 合格
A27: 24 | B27: 吴配美 | C27: 01 | D27: 专业技术岗 | E27: 78 | F27: 86.16 | G27: =SUM(E27:F27) -> 164.16 | H27: =G27/2 -> 82.08 | M27: =H27+L27 -> 82.08 | N27: 合格
A28: 25 | B28: 杨穗 | C28: 01 | D28: 专业技术岗 | E28: 78 | F28: 85.83 | G28: =SUM(E28:F28) -> 163.83 | H28: =G28/2 -> 81.92 | M28: =H28+L28 -> 81.92 | N28: 合格
A29: 26 | B29: 张绪芬 | C29: 01 | D29: 专业技术岗 | E29: 76 | F29: 87.66 | G29: =SUM(E29:F29) -> 163.66 | H29: =G29/2 -> 81.83 | M29: =H29+L29 -> 81.83 | N29: 合格
A30: 27 | B30: 万萍 | C30: 01 | D30: 专业技术岗 | E30: 76 | F30: 87.16 | G30: =SUM(E30:F30) -> 163.16 | H30: =G30/2 -> 81.58 | M30: =H30+L30 -> 81.58 | N30: 合格
A31: 28 | B31: 姚丽芳 | C31: 01 | D31: 专业技术岗 | E31: 74 | F31: 89 | G31: =SUM(E31:F31) -> 163 | H31: =G31/2 -> 81.50 | M31: =H31+L31 -> 81.50 | N31: 合格
A32: 29 | B32: 吴静 | C32: 01 | D32: 专业技术岗 | E32: 73 | F32: 89.66 | G32: =SUM(E32:F32) -> 162.66 | H32: =G32/2 -> 81.33 | M32: =H32+L32 -> 81.33 | N32: 合格
A33: 30 | B33: 向文静 | C33: 01 | D33: 专业技术岗 | E33: 81 | F33: 80.33 | G33: =SUM(E33:F33) -> 161.33 | H33: =G33/2 -> 80.67 | M33: =H33+L33 -> 80.67 | N33: 合格
A34: 31 | B34: 李单 | C34: 01 | D34: 专业技术岗 | E34: 80 | F34: 81.33 | G34: =SUM(E34:F34) -> 161.33 | H34: =G34/2 -> 80.67 | M34: =H34+L34 -> 80.67 | N34: 合格
A35: 32 | B35: 杨芳杰 | C35: 01 | D35: 专业技术岗 | E35: 84 | F35: 76.16 | G35: =SUM(E35:F35) -> 160.16 | H35: =G35/2 -> 80.08 | M35: =H35+L35 -> 80.08 | N35: 合格
A36: 33 | B36: 刘兴佳 | C36: 01 | D36: 专业技术岗 | E36: 74 | F36: 86 | G36: =SUM(E36:F36) -> 160 | H36: =G36/2 -> 80.00 | M36: =H36+L36 -> 80.00 | N36: 合格
A37: 34 | B37: 吴培晶 | C37: 01 | D37: 专业技术岗 | E37: 71 | F37: 88.83 | G37: =SUM(E37:F37) -> 159.83 | H37: =G37/2 -> 79.92 | M37: =H37+L37 -> 79.92 | N37: 合格
A38: 35 | B38: 唐蓉 | C38: 01 | D38: 专业技术岗 | E38: 79 | F38: 80.16 | G38: =SUM(E38:F38) -> 159.16 | H38: =G38/2 -> 79.58 | M38: =H38+L38 -> 79.58 | N38: 合格
A39: 36 | B39: 杨光进 | C39: 01 | D39: 专业技术岗 | E39: 59 | F39: 94.16 | G39: =SUM(E39:F39) -> 153.16 | H39: =G39/2 -> 76.58 | I39: 3.00 | L39: =SUM(I39:K39) -> 3.00 | M39: =H39+L39 -> 79.58 | N39: 合格
A40: 37 | B40: 潘盛玉 | C40: 01 | D40: 专业技术岗 | E40: 81 | F40: 77.83 | G40: =SUM(E40:F40) -> 158.83 | H40: =G40/2 -> 79.42 | M40: =H40+L40 -> 79.42 | N40: 合格
A41: 38 | B41: 杨密 | C41: 01 | D41: 专业技术岗 | E41: 80 | F41: 78.33 | G41: =SUM(E41:F41) -> 158.33 | H41: =G41/2 -> 79.17 | M41: =H41+L41 -> 79.17 | N41: 合格
A42: 39 | B42: 耿巧云 | C42: 01 | D42: 专业技术岗 | E42: 73 | F42: 84.83 | G42: =SUM(E42:F42) -> 157.83 | H42: =G42/2 -> 78.92 | M42: =H42+L42 -> 78.92 | N42: 合格
A43: 40 | B43: 姜九妹 | C43: 01 | D43: 专业技术岗 | E43: 83 | F43: 73.5 | G43: =SUM(E43:F43) -> 156.5 | H43: =G43/2 -> 78.25 | M43: =H43+L43 -> 78.25 | N43: 合格
A44: 41 | B44: 陈美 | C44: 01 | D44: 专业技术岗 | E44: 80 | F44: 75.83 | G44: =SUM(E44:F44) -> 155.83 | H44: =G44/2 -> 77.92 | M44: =H44+L44 -> 77.92 | N44: 合格
A45: 42 | B45: 魏向仙 | C45: 01 | D45: 专业技术岗 | E45: 75 | F45: 80.5 | G45: =SUM(E45:F45) -> 155.5 | H45: =G45/2 -> 77.75 | M45: =H45+L45 -> 77.75 | N45: 合格
A46: 43 | B46: 杨智珺 | C46: 02 | D46: 专业技术岗 | F46: 86.4 | M46: 86.4 | N46: 合格
A47: 44 | B47: 吴建勇 | C47: 03 | D47: 专业技术岗 | F47: 80.2 | M47: 80.2 | N47: 合格
A48: 45 | B48: 吉沛东 | C48: 03 | D48: 专业技术岗 | F48: 80 | M48: 80 | N48: 合格
A49: 46 | B49: 张惠惠 | C49: 03 | D49: 专业技术岗 | F49: 77.4 | M49: 77.4 | N49: 合格
A50: 47 | B50: 谭明东 | C50: 04 | D50: 专业技术岗 | F50: 91 | M50: 91 | N50: 合格
A51: 48 | B51: 秦伍 | C51: 04 | D51: 专业技术岗 | F51: 90.6 | M51: 90.6 | N51: 合格
A52: 49 | B52: 宋柏熠 | C52: 04 | D52: 专业技术岗 | F52: 87.4 | M52: 87.4 | N52: 合格
A53: 50 | B53: 丁金良 | C53: 04 | D53: 专业技术岗 | F53: 86.6 | M53: 86.6 | N53: 合格
A54: 51 | B54: 何本武 | C54: 04 | D54: 专业技术岗 | F54: 81.2 | M54: 81.2 | N54: 合格
A55: 52 | B55: 李昌秀 | C55: 04 | D55: 专业技术岗 | F55: 81 | M55: 81 | N55: 合格
A56: 53 | B56: 童飞 | C56: 04 | D56: 专业技术岗 | F56: 80.8 | M56: 80.8 | N56: 合格
A57: 54 | B57: 罗时梅 | C57: 05 | D57: 专业技术岗 | F57: 84.8 | M57: 84.8 | N57: 合格
A58: 55 | B58: 殷中友 | C58: 06 | D58: 专业技术岗 | F58: 91.2 | M58: 91.2 | N58: 合格
A59: 56 | B59: 吴青 | C59: 06 | D59: 专业技术岗 | F59: 87.6 | M59: 87.6 | N59: 合格
A60: 57 | B60: 龙金花 | C60: 06 | D60: 专业技术岗 | F60: 82.2 | M60: 82.2 | N60: 合格
A61: 58 | B61: 杨文刚 | C61: 06 | D61: 专业技术岗 | F61: 81.6 | M61: 81.6 | N61: 合格
A62: 59 | B62: 杨成 | C62: 06 | D62: 专业技术岗 | F62: 81.2 | M62: 81.2 | N62: 合格
A63: 60 | B63: 周金萍 | C63: 06 | D63: 专业技术岗 | F63: 79.2 | M63: 79.2 | N63: 合格
A64: 61 | B64: 杨曌 | C64: 06 | D64: 专业技术岗 | F64: 78.8 | M64: 78.8 | N64: 合格
A65: 62 | B65: 姚焱 | C65: 06 | D65: 专业技术岗 | F65: 78.8 | M65: 78.8 | N65: 合格
A66: 63 | B66: 李君 | C66: 07 | D66: 专业技术岗 | F66: 77.6 | M66: 77.6 | N66: 合格
A67: 64 | B67: 文毛 | C67: 08 | D67: 专业技术岗 | F67: 83.6 | M67: 83.6 | N67: 合格
A68: 65 | B68: 郭朝平 | C68: 08 | D68: 专业技术岗 | F68: 81.4 | M68: 81.4 | N68: 放弃体检
A69: 66 | B69: 万水英 | C69: 08 | D69: 专业技术岗 | M69: 78.8 | N69: 合格 | O69: 替补入围体检
A70: 67 | B70: 罗远洋 | C70: 09 | D70: 专业技术岗 | F70: 88.8 | M70: 88.8 | N70: 合格
A71: 68 | B71: 吴德波 | C71: 09 | D71: 专业技术岗 | F71: 84.4 | M71: 84.4 | N71: 合格
A72: 69 | B72: 杨政延 | C72: 09 | D72: 专业技术岗 | F72: 83.6 | M72: 83.6 | N72: 合格
A73: 70 | B73: 梁明玉 | C73: 10 | D73: 管理岗位 | F73: 87.2 | M73: 87.2 | N73: 合格
A74: 71 | B74: 周松青 | C74: 10 | D74: 管理岗位 | F74: 84.6 | M74: 84.6 | N74: 合格
A75: 72 | B75: 杨舒兰 | C75: 11 | D75: 管理岗位 | F75: 88 | M75: 88 | N75: 合格
A76: 73 | B76: 龙季 | C76: 11 | D76: 管理岗位 | F76: 87.4 | M76: 87.4 | N76: 合格
A77: 74 | B77: 罗鸿文 | C77: 11 | D77: 管理岗位 | F77: 83.8 | M77: 83.8 | N77: 合格
